[Event "Late-Titled-Tuesday-Blitz-October-10-2023"]
[Site "Chess.com"]
[Date "2023.10.10"]
[Round "7"]
[White "McCarthyStone"]
[Black "AlexandraBotez"]
[Result "0-1"]
[WhiteElo "2419"]
[BlackElo "2301"]
[TimeControl "180+1"]
[EndTime "15:14:45 PDT"]
[Termination "AlexandraBotez won by resignation"]

1. b3 {[%clk 0:00:24]} 1... Nf6 {[%clk 0:02:57.2]} 2. Bb2 {[%clk 0:00:24.9]}
2... d5 {[%clk 0:02:57.1]} 3. Nf3 {[%clk 0:00:25.1]} 3... c5 {[%clk 0:02:56.1]}
4. g3 {[%clk 0:00:25.4]} 4... Nc6 {[%clk 0:02:55.7]} 5. Bg2 {[%clk 0:00:26.3]}
5... Bf5 {[%clk 0:02:54]} 6. d3 {[%clk 0:00:26.6]} 6... Qd7 {[%clk 0:02:51.5]}
7. h3 {[%clk 0:00:22.1]} 7... h5 {[%clk 0:02:49.7]} 8. Nbd2 {[%clk 0:00:22.5]}
8... g6 {[%clk 0:02:47.2]} 9. e3 {[%clk 0:00:21.6]} 9... Bg7 {[%clk 0:02:46.1]}
10. e4 {[%clk 0:00:21.7]} 10... Be6 {[%clk 0:02:40.8]} 11. Ng5 {[%clk
0:00:22.2]} 11... d4 {[%clk 0:02:35.3]} 12. Nxe6 {[%clk 0:00:22.3]} 12... Qxe6
{[%clk 0:02:34.5]} 13. f4 {[%clk 0:00:22.6]} 13... O-O {[%clk 0:02:16.9]} 14.
Qe2 {[%clk 0:00:22.6]} 14... b5 {[%clk 0:02:13.1]} 15. a4 {[%clk 0:00:22.3]}
15... a6 {[%clk 0:02:12.1]} 16. O-O {[%clk 0:00:22.5]} 16... Nb4 {[%clk
0:02:06.6]} 17. Nf3 {[%clk 0:00:20.7]} 17... Rfd8 {[%clk 0:01:48.8]} 18. Rf2
{[%clk 0:00:20.8]} 18... Rab8 {[%clk 0:01:44.9]} 19. Ng5 {[%clk 0:00:17.3]}
19... Qc8 {[%clk 0:01:36.3]} 20. f5 {[%clk 0:00:17.5]} 20... Nh7 {[%clk
0:01:24.4]} 21. Nxh7 {[%clk 0:00:14.1]} 21... Kxh7 {[%clk 0:01:24.2]} 22. axb5
{[%clk 0:00:11.9]} 22... axb5 {[%clk 0:01:24]} 23. Raf1 {[%clk 0:00:11.7]} 23...
Qc7 {[%clk 0:01:06.7]} 24. Bc1 {[%clk 0:00:11.9]} 24... Ra8 {[%clk 0:01:00]} 25.
fxg6+ {[%clk 0:00:11]} 25... fxg6 {[%clk 0:01:00]} 26. Rf7 {[%clk 0:00:11.3]}
26... Rf8 {[%clk 0:00:59.8]} 27. e5 {[%clk 0:00:08]} 27... Rxf7 {[%clk
0:00:49.5]} 28. Rxf7 {[%clk 0:00:07.5]} 28... Rf8 {[%clk 0:00:45.5]} 29. Rxf8
{[%clk 0:00:05.9]} 29... Bxf8 {[%clk 0:00:45.8]} 30. Qf2 {[%clk 0:00:05.3]}
30... Bg7 {[%clk 0:00:44.2]} 31. e6 {[%clk 0:00:06]} 31... Qe5 {[%clk
0:00:41.3]} 32. Bf4 {[%clk 0:00:03.6]} 32... Qxe6 {[%clk 0:00:39.7]} 33. Be4
{[%clk 0:00:04.5]} 33... Nd5 {[%clk 0:00:37.2]} 34. Bg5 {[%clk 0:00:04.3]} 34...
Nf6 {[%clk 0:00:35.1]} 35. Bxf6 {[%clk 0:00:03.4]} 35... Bxf6 {[%clk 0:00:35]}
36. Qf3 {[%clk 0:00:04.1]} 36... Qxh3 {[%clk 0:00:33]} 37. Bc6 {[%clk
0:00:04.2]} 37... Qe6 {[%clk 0:00:30.8]} 38. Bxb5 {[%clk 0:00:04]} 38... Qe1+
{[%clk 0:00:27.3]} 39. Qf1 {[%clk 0:00:03.3]} 39... Qe3+ {[%clk 0:00:27.2]} 40.
Kg2 {[%clk 0:00:03.9]} 40... Kg7 {[%clk 0:00:24.3]} 41. Bc4 {[%clk 0:00:03.8]}
41... h4 {[%clk 0:00:24.3]} 42. gxh4 {[%clk 0:00:04.5]} 42... Qd2+ {[%clk
0:00:21.4]} 43. Qf2 {[%clk 0:00:04.1]} 43... Qxf2+ {[%clk 0:00:20.2]} 44. Kxf2
{[%clk 0:00:05]} 44... Bxh4+ {[%clk 0:00:20.9]} 45. Kf3 {[%clk 0:00:05.9]} 45...
Kf6 {[%clk 0:00:16.5]} 46. Kg4 {[%clk 0:00:05.5]} 46... Bf2 {[%clk 0:00:15.6]}
47. Bd5 {[%clk 0:00:06.1]} 47... Be1 {[%clk 0:00:15.2]} 48. Bg2 {[%clk
0:00:06.5]} 48... g5 {[%clk 0:00:15]} 49. Kf3 {[%clk 0:00:06.8]} 49... Kf5
{[%clk 0:00:14.4]} 50. Bh3+ {[%clk 0:00:06.7]} 50... Ke5 {[%clk 0:00:14.6]} 51.
Bg4 {[%clk 0:00:07.6]} 51... Bd2 {[%clk 0:00:14.9]} 52. Ke2 {[%clk 0:00:07.8]}
52... Bf4 {[%clk 0:00:15]} 53. Kf3 {[%clk 0:00:08.7]} 53... Kd5 {[%clk
0:00:14.6]} 54. Bc8 {[%clk 0:00:08.4]} 54... Ke5 {[%clk 0:00:13.3]} 55. Kg4
{[%clk 0:00:08.6]} 55... Bc1 {[%clk 0:00:13]} 56. Bb7 {[%clk 0:00:08.2]} 56...
e6 {[%clk 0:00:12.9]} 57. Be4 {[%clk 0:00:08.9]} 57... Be3 {[%clk 0:00:13.1]}
58. Kf3 {[%clk 0:00:09]} 58... Kf6 {[%clk 0:00:13.1]} 59. Kg4 {[%clk 0:00:09.9]}
59... e5 {[%clk 0:00:11.5]} 60. Kh5 {[%clk 0:00:09.8]} 60... Bf4 {[%clk
0:00:11.5]} 61. Bf3 {[%clk 0:00:10.1]} 61... Ke7 {[%clk 0:00:12.1]} 62. Kg6
{[%clk 0:00:10.5]} 62... Kd6 {[%clk 0:00:12.7]} 63. Kf6 {[%clk 0:00:11]} 63...
Kc7 {[%clk 0:00:13.4]} 64. Ke6 {[%clk 0:00:11.8]} 64... Kb6 {[%clk 0:00:14]} 65.
Kd5 {[%clk 0:00:12.3]} 65... Kb5 {[%clk 0:00:14.7]} 66. Bg4 {[%clk 0:00:12.8]}
66... Kb4 {[%clk 0:00:15]} 67. Kc6 {[%clk 0:00:10.9]} 67... Bh2 {[%clk
0:00:13.2]} 68. Bf3 {[%clk 0:00:11.4]} 68... Bf4 {[%clk 0:00:12.3]} 69. Kd5
{[%clk 0:00:11.3]} 69... Bg3 {[%clk 0:00:11.4]} 70. Bg4 {[%clk 0:00:11.7]} 70...
Be1 {[%clk 0:00:09.4]} 71. Kxe5 {[%clk 0:00:11.3]} 71... Kc3 {[%clk 0:00:09.9]}
72. Kd5 {[%clk 0:00:11.1]} 72... Kxc2 {[%clk 0:00:10.5]} 73. Kc4 {[%clk
0:00:11.5]} 73... Bb4 {[%clk 0:00:09.9]} 74. Bf5 {[%clk 0:00:09.2]} 74... Kd2
{[%clk 0:00:10.3]} 75. Kd5 {[%clk 0:00:09.6]} 75... Ke3 {[%clk 0:00:10.5]} 76.
Ke5 {[%clk 0:00:08.1]} 76... Kf3 {[%clk 0:00:10.6]} 77. Be4+ {[%clk 0:00:08.8]}
77... Kg3 {[%clk 0:00:10.5]} 78. Kf5 {[%clk 0:00:09.2]} 78... Kh4 {[%clk
0:00:10.8]} 79. Bf3 {[%clk 0:00:09.7]} 79... Bd2 {[%clk 0:00:10.2]} 80. Ke4
{[%clk 0:00:10]} 80... Kg3 {[%clk 0:00:10.6]} 81. Bh5 {[%clk 0:00:10.3]} 81...
Kh4 {[%clk 0:00:09.4]} 82. Be2 {[%clk 0:00:08.9]} 82... g4 {[%clk 0:00:10]} 83.
Bf1 {[%clk 0:00:05.8]} 83... Kg3 {[%clk 0:00:09.5]} 84. Kf5 {[%clk 0:00:05.9]}
84... Kf2 {[%clk 0:00:09.8]} 85. Kxg4 {[%clk 0:00:02.4]} 85... Kxf1 {[%clk
0:00:09.6]} 86. Kf5 {[%clk 0:00:03.3]} 86... Bb4 {[%clk 0:00:10]} 87. Ke4 {[%clk
0:00:04.2]} 87... Ke2 {[%clk 0:00:10.4]} 88. Kd5 {[%clk 0:00:05.1]} 88... Kxd3
{[%clk 0:00:10.8]} 89. Ke5 {[%clk 0:00:06]} 89... Kc3 {[%clk 0:00:11.4]} 0-1

[Event "Late-Titled-Tuesday-Blitz-October-10-2023"]
[Site "Chess.com"]
[Date "2023.10.10"]
[Round "8"]
[White "Jospem"]
[Black "DanielNaroditsky"]
[Result "1/2-1/2"]
[WhiteElo "3134"]
[BlackElo "3177"]
[TimeControl "180+1"]
[EndTime "15:17:21 PDT"]
[Termination "Game drawn by agreement"]

1. e4 {[%clk 0:03:00.9]} 1... e5 {[%clk 0:02:53.9]} 2. Nf3 {[%clk 0:03:00.7]}
2... Nc6 {[%clk 0:02:54.6]} 3. Nc3 {[%clk 0:03:01.2]} 3... Nf6 {[%clk 0:02:54]}
4. h3 {[%clk 0:03:01.7]} 4... d5 {[%clk 0:02:48.7]} 5. exd5 {[%clk 0:03:02.6]}
5... Nxd5 {[%clk 0:02:48.9]} 6. Bb5 {[%clk 0:03:02.6]} 6... Nxc3 {[%clk
0:02:45.2]} 7. bxc3 {[%clk 0:03:03.5]} 7... Bd6 {[%clk 0:02:45.6]} 8. O-O {[%clk
0:03:03.2]} 8... O-O {[%clk 0:02:45.6]} 9. d4 {[%clk 0:03:03.6]} 9... exd4
{[%clk 0:02:37]} 10. cxd4 {[%clk 0:03:04.5]} 10... Bf5 {[%clk 0:02:35.4]} 11.
Bg5 {[%clk 0:03:04.2]} 11... Be7 {[%clk 0:02:31.6]} 12. Bxe7 {[%clk 0:02:52.6]}
12... Qxe7 {[%clk 0:02:25.1]} 13. c3 {[%clk 0:02:46]} 1/2-1/2

[Event "Late-Titled-Tuesday-Blitz-October-10-2023"]
[Site "Chess.com"]
[Date "2023.10.10"]
[Round "8"]
[White "THE_PLAYER6"]
[Black "Arystanner"]
[Result "1-0"]
[WhiteElo "2669"]
[BlackElo "2804"]
[TimeControl "180+1"]
[EndTime "15:19:23 PDT"]
[Termination "THE_PLAYER6 won by resignation"]

1. c4 {[%clk 0:02:59.7]} 1... e6 {[%clk 0:02:52.5]} 2. Nf3 {[%clk 0:02:59.4]}
2... d5 {[%clk 0:02:52.8]} 3. g3 {[%clk 0:02:59.4]} 3... Nf6 {[%clk 0:02:53]} 4.
Bg2 {[%clk 0:02:59.7]} 4... Nbd7 {[%clk 0:02:53.6]} 5. O-O {[%clk 0:02:59.8]}
5... dxc4 {[%clk 0:02:54.2]} 6. Qc2 {[%clk 0:02:59.1]} 6... a6 {[%clk
0:02:52.5]} 7. Qxc4 {[%clk 0:02:57.5]} 7... b5 {[%clk 0:02:52.9]} 8. Qc2 {[%clk
0:02:55.3]} 8... Bb7 {[%clk 0:02:53.5]} 9. a4 {[%clk 0:02:54.9]} 9... c5 {[%clk
0:02:53.8]} 10. d3 {[%clk 0:02:51.9]} 10... Rc8 {[%clk 0:02:51.4]} 11. axb5
{[%clk 0:02:49]} 11... axb5 {[%clk 0:02:51.7]} 12. Nc3 {[%clk 0:02:48.1]} 12...
Qb6 {[%clk 0:02:52.3]} 13. Bf4 {[%clk 0:02:42.8]} 13... Be7 {[%clk 0:02:52.6]}
14. Qb3 {[%clk 0:02:29.1]} 14... Nd5 {[%clk 0:02:53.1]} 15. Nxb5 {[%clk
0:02:03.2]} 15... Nxf4 {[%clk 0:02:49.9]} 16. gxf4 {[%clk 0:01:58.3]} 16... Bc6
{[%clk 0:02:49.7]} 17. Ne5 {[%clk 0:01:36]} 17... Nxe5 {[%clk 0:02:47.9]} 18.
Nd6+ {[%clk 0:01:22.4]} 18... Bxd6 {[%clk 0:02:47.9]} 19. Qxb6 {[%clk
0:01:22.6]} 19... Bxg2 {[%clk 0:02:20.3]} 20. Qxd6 {[%clk 0:01:16.6]} 20... Bxf1
{[%clk 0:02:20]} 21. fxe5 {[%clk 0:01:15.1]} 1-0

[Event "Late-Titled-Tuesday-Blitz-October-10-2023"]
[Site "Chess.com"]
[Date "2023.10.10"]
[Round "8"]
[White "schondeln"]
[Black "Szczor"]
[Result "0-1"]
[WhiteElo "2382"]
[BlackElo "2602"]
[TimeControl "180+1"]
[EndTime "15:20:18 PDT"]
[Termination "Szczor won by checkmate"]

1. e4 {[%clk 0:03:00.9]} 1... c5 {[%clk 0:03:00]} 2. Nf3 {[%clk 0:03:00.8]} 2...
d6 {[%clk 0:03:00.7]} 3. Bc4 {[%clk 0:03:00.6]} 3... e6 {[%clk 0:03:00.7]} 4.
O-O {[%clk 0:03:00.1]} 4... a6 {[%clk 0:03:01.6]} 5. Bb3 {[%clk 0:02:58.8]} 5...
b5 {[%clk 0:03:02]} 6. c3 {[%clk 0:02:56.2]} 6... Bb7 {[%clk 0:03:02.3]} 7. Re1
{[%clk 0:02:56.4]} 7... Ne7 {[%clk 0:03:01.8]} 8. d4 {[%clk 0:02:56.2]} 8... Nd7
{[%clk 0:03:01.9]} 9. Nbd2 {[%clk 0:02:48.7]} 9... g6 {[%clk 0:03:01.8]} 10. Nf1
{[%clk 0:02:45.1]} 10... Bg7 {[%clk 0:03:02.2]} 11. Ng3 {[%clk 0:02:45.2]} 11...
O-O {[%clk 0:03:02.7]} 12. Be3 {[%clk 0:02:43.1]} 12... e5 {[%clk 0:02:59.8]}
13. a4 {[%clk 0:02:31.8]} 13... exd4 {[%clk 0:02:59.1]} 14. cxd4 {[%clk
0:02:31.8]} 14... Nc6 {[%clk 0:02:59.2]} 15. axb5 {[%clk 0:01:59.5]} 15... axb5
{[%clk 0:02:58.8]} 16. Rxa8 {[%clk 0:02:00.1]} 16... Qxa8 {[%clk 0:02:58.4]} 17.
Bd5 {[%clk 0:01:55.9]} 17... c4 {[%clk 0:02:46.7]} 18. Bxc6 {[%clk 0:01:52.2]}
18... Bxc6 {[%clk 0:02:47.1]} 19. d5 {[%clk 0:01:52.7]} 19... Bb7 {[%clk
0:02:47.4]} 20. Bd4 {[%clk 0:01:53.2]} 20... Nc5 {[%clk 0:02:44.1]} 21. Bxg7
{[%clk 0:01:52.1]} 21... Kxg7 {[%clk 0:02:44.5]} 22. Qd4+ {[%clk 0:01:52.7]}
22... f6 {[%clk 0:02:45.3]} 23. Ng5 {[%clk 0:01:22.7]} 23... Re8 {[%clk
0:02:42.3]} 24. f3 {[%clk 0:01:03.8]} 24... h6 {[%clk 0:02:35.1]} 25. Nh3 {[%clk
0:01:02.9]} 25... Nd3 {[%clk 0:02:30.9]} 26. Re2 {[%clk 0:00:49.3]} 26... Qa1+
{[%clk 0:02:24]} 27. Nf1 {[%clk 0:00:49.4]} 27... Ra8 {[%clk 0:02:23.1]} 28. Nf2
{[%clk 0:00:49.4]} 28... Qxf1+ {[%clk 0:02:17.7]} 29. Kxf1 {[%clk 0:00:47]}
29... Ra1+ {[%clk 0:02:18.6]} 30. Nd1 {[%clk 0:00:38.7]} 30... Rxd1+ {[%clk
0:02:18.6]} 31. Re1 {[%clk 0:00:39.6]} 31... Rxe1# {[%clk 0:02:19.1]} 0-1

[Event "Late-Titled-Tuesday-Blitz-October-10-2023"]
[Site "Chess.com"]
[Date "2023.10.10"]
[Round "8"]
[White "Alina_Gumerovna"]
[Black "flukeyNZ"]
[Result "0-1"]
[WhiteElo "2121"]
[BlackElo "2246"]
[TimeControl "180+1"]
[EndTime "15:20:34 PDT"]
[Termination "flukeyNZ won by checkmate"]

1. e4 {[%clk 0:02:59.3]} 1... e6 {[%clk 0:02:59.3]} 2. d4 {[%clk 0:02:56]} 2...
d5 {[%clk 0:02:59.8]} 3. Nd2 {[%clk 0:02:51.1]} 3... c5 {[%clk 0:02:57.4]} 4. c3
{[%clk 0:02:46.5]} 4... Nc6 {[%clk 0:02:48.7]} 5. Ngf3 {[%clk 0:02:41.2]} 5...
Nf6 {[%clk 0:02:39.7]} 6. e5 {[%clk 0:02:40.3]} 6... Nd7 {[%clk 0:02:39.9]} 7.
Nb3 {[%clk 0:02:38.4]} 7... Be7 {[%clk 0:02:33]} 8. Bb5 {[%clk 0:02:32.1]} 8...
O-O {[%clk 0:02:30.1]} 9. O-O {[%clk 0:02:30.5]} 9... a6 {[%clk 0:02:29.7]} 10.
Bxc6 {[%clk 0:02:23.1]} 10... bxc6 {[%clk 0:02:26.2]} 11. Bf4 {[%clk 0:02:20]}
11... Rb8 {[%clk 0:02:17.6]} 12. Qe2 {[%clk 0:02:15.4]} 12... c4 {[%clk
0:02:14.8]} 13. Nc1 {[%clk 0:02:09.7]} 13... Qb6 {[%clk 0:02:12]} 14. Rb1 {[%clk
0:02:00.7]} 14... c5 {[%clk 0:02:05.6]} 15. Qd2 {[%clk 0:01:53.9]} 15... cxd4
{[%clk 0:01:52]} 16. Nxd4 {[%clk 0:01:44.6]} 16... Nc5 {[%clk 0:01:50]} 17. f3
{[%clk 0:01:40.9]} 17... f5 {[%clk 0:01:36.9]} 18. b4 {[%clk 0:01:27.1]} 18...
cxb3 {[%clk 0:01:15.8]} 19. axb3 {[%clk 0:01:26.3]} 19... a5 {[%clk 0:01:12.2]}
20. Kh1 {[%clk 0:01:24]} 20... Qa6 {[%clk 0:01:09.9]} 21. Bg5 {[%clk 0:01:10.2]}
21... Qxf1# {[%clk 0:01:08.2]} 0-1

[Event "Late-Titled-Tuesday-Blitz-October-10-2023"]
[Site "Chess.com"]
[Date "2023.10.10"]
[Round "8"]
[White "GM_dmitrij"]
[Black "Iball95"]
[Result "0-1"]
[WhiteElo "2991"]
[BlackElo "2849"]
[TimeControl "180+1"]
[EndTime "15:20:40 PDT"]
[Termination "Iball95 won by resignation"]

1. d4 {[%clk 0:03:00.9]} 1... d5 {[%clk 0:03:00]} 2. c4 {[%clk 0:02:59.2]} 2...
e6 {[%clk 0:03:00]} 3. Nc3 {[%clk 0:02:57.8]} 3... c5 {[%clk 0:03:00.4]} 4. cxd5
{[%clk 0:02:56.8]} 4... cxd4 {[%clk 0:03:00.8]} 5. Qa4+ {[%clk 0:02:56]} 5...
Bd7 {[%clk 0:03:01.6]} 6. Qxd4 {[%clk 0:02:56.2]} 6... exd5 {[%clk 0:03:02.5]}
7. Nf3 {[%clk 0:02:56.1]} 7... Nf6 {[%clk 0:03:02.5]} 8. Bg5 {[%clk 0:02:55.8]}
8... Be7 {[%clk 0:03:02.1]} 9. e3 {[%clk 0:02:55]} 9... Nc6 {[%clk 0:03:02.6]}
10. Qd3 {[%clk 0:02:55.3]} 10... O-O {[%clk 0:03:02.2]} 11. Be2 {[%clk
0:02:55.2]} 11... Be6 {[%clk 0:03:01.7]} 12. Rd1 {[%clk 0:02:54.5]} 12... h6
{[%clk 0:03:01]} 13. Bh4 {[%clk 0:02:53.5]} 13... Qb6 {[%clk 0:03:01.5]} 14. Qb5
{[%clk 0:02:53]} 14... g5 {[%clk 0:02:56.4]} 15. Bg3 {[%clk 0:02:51.6]} 15...
Ne4 {[%clk 0:02:56]} 16. O-O {[%clk 0:02:27]} 16... Nxc3 {[%clk 0:02:48.4]} 17.
bxc3 {[%clk 0:02:27.9]} 17... Qxb5 {[%clk 0:02:48.7]} 18. Bxb5 {[%clk
0:02:28.8]} 18... Rfc8 {[%clk 0:02:46.6]} 19. h3 {[%clk 0:02:23.7]} 19... Bf6
{[%clk 0:02:43.7]} 20. Nd4 {[%clk 0:02:23.4]} 20... Nxd4 {[%clk 0:02:41.6]} 21.
cxd4 {[%clk 0:02:22.7]} 21... a6 {[%clk 0:02:42.5]} 22. Bd3 {[%clk 0:02:21.8]}
22... b5 {[%clk 0:02:41.9]} 23. Bd6 {[%clk 0:02:08.6]} 23... Ra7 {[%clk
0:02:31.3]} 24. g4 {[%clk 0:02:03.5]} 24... Be7 {[%clk 0:02:26]} 25. Bxe7 {[%clk
0:01:10.2]} 25... Rxe7 {[%clk 0:02:26.9]} 26. a4 {[%clk 0:01:09.4]} 26... bxa4
{[%clk 0:02:24.4]} 27. Ra1 {[%clk 0:01:06.9]} 27... Rc3 {[%clk 0:02:12.9]} 28.
Be2 {[%clk 0:01:03.4]} 28... a3 {[%clk 0:02:12]} 29. Ra2 {[%clk 0:01:03.5]}
29... Rb7 {[%clk 0:02:09.2]} 30. Rfa1 {[%clk 0:01:02.2]} 30... Rb2 {[%clk
0:02:07.2]} 31. Kf1 {[%clk 0:01:00.4]} 31... Rcc2 {[%clk 0:01:54.9]} 0-1

[Event "Late-Titled-Tuesday-Blitz-October-10-2023"]
[Site "Chess.com"]
[Date "2023.10.10"]
[Round "8"]
[White "howitzer14"]
[Black "isainz"]
[Result "1-0"]
[WhiteElo "2972"]
[BlackElo "2025"]
[TimeControl "180+1"]
[EndTime "15:20:44 PDT"]
[Termination "howitzer14 won by resignation"]

1. d4 {[%clk 0:03:00.9]} 1... d5 {[%clk 0:02:57.1]} 2. Bf4 {[%clk 0:03:00.1]}
2... c5 {[%clk 0:02:55.2]} 3. e3 {[%clk 0:02:59.1]} 3... Nc6 {[%clk 0:02:52.4]}
4. c3 {[%clk 0:02:58.7]} 4... Nf6 {[%clk 0:02:50.3]} 5. Nd2 {[%clk 0:02:59]}
5... Bf5 {[%clk 0:02:41.7]} 6. Ngf3 {[%clk 0:02:38.9]} 6... e6 {[%clk 0:02:41]}
7. Bb5 {[%clk 0:02:36.9]} 7... Nd7 {[%clk 0:02:35.2]} 8. O-O {[%clk 0:02:34.7]}
8... Qb6 {[%clk 0:02:33.3]} 9. c4 {[%clk 0:02:17.6]} 9... cxd4 {[%clk
0:02:26.3]} 10. Nxd4 {[%clk 0:01:53.2]} 10... Nxd4 {[%clk 0:02:25.9]} 11. exd4
{[%clk 0:01:51.7]} 11... Qxd4 {[%clk 0:01:45.5]} 12. Be3 {[%clk 0:01:34.7]}
12... Qe5 {[%clk 0:01:37.1]} 13. Bxd7+ {[%clk 0:01:11.9]} 13... Kxd7 {[%clk
0:01:38]} 14. Nf3 {[%clk 0:01:08.5]} 14... Qd6 {[%clk 0:01:28]} 15. cxd5 {[%clk
0:01:07.8]} 15... Qxd5 {[%clk 0:01:27.6]} 16. Qa4+ {[%clk 0:01:07.8]} 16... b5
{[%clk 0:01:05.3]} 17. Qa6 {[%clk 0:01:06.9]} 17... Bd6 {[%clk 0:00:58.1]} 18.
Rfd1 {[%clk 0:01:05.3]} 18... Qc6 {[%clk 0:00:55]} 19. Ne5+ {[%clk 0:01:03.7]}
1-0

[Event "Late-Titled-Tuesday-Blitz-October-10-2023"]
[Site "Chess.com"]
[Date "2023.10.10"]
[Round "8"]
[White "Thormento16"]
[Black "Semetey"]
[Result "1-0"]
[WhiteElo "2316"]
[BlackElo "2540"]
[TimeControl "180+1"]
[EndTime "15:20:46 PDT"]
[Termination "Thormento16 won by resignation"]

1. e4 {[%clk 0:03:00.9]} 1... c5 {[%clk 0:02:59.7]} 2. Nf3 {[%clk 0:03:00.1]}
2... Nc6 {[%clk 0:03:00.2]} 3. Bb5 {[%clk 0:03:00.4]} 3... g6 {[%clk 0:02:59.4]}
4. Bxc6 {[%clk 0:02:59.9]} 4... bxc6 {[%clk 0:02:57.4]} 5. O-O {[%clk
0:02:59.1]} 5... Bg7 {[%clk 0:02:57.6]} 6. Re1 {[%clk 0:02:57.4]} 6... d6 {[%clk
0:02:57.4]} 7. c3 {[%clk 0:02:56.6]} 7... e5 {[%clk 0:02:53.3]} 8. d4 {[%clk
0:02:56.2]} 8... cxd4 {[%clk 0:02:51.4]} 9. cxd4 {[%clk 0:02:57.1]} 9... exd4
{[%clk 0:02:51.7]} 10. Nxd4 {[%clk 0:02:57.6]} 10... Ne7 {[%clk 0:02:51.3]} 11.
Bg5 {[%clk 0:02:54.1]} 11... Bb7 {[%clk 0:02:50.7]} 12. Nc3 {[%clk 0:02:50]}
12... O-O {[%clk 0:02:50.1]} 13. Rc1 {[%clk 0:02:49.9]} 13... Re8 {[%clk
0:02:48]} 14. h4 {[%clk 0:02:40.4]} 14... h6 {[%clk 0:02:41.5]} 15. Be3 {[%clk
0:02:39.6]} 15... Kh7 {[%clk 0:02:30.6]} 16. h5 {[%clk 0:02:39.9]} 16... Ng8
{[%clk 0:02:24.3]} 17. hxg6+ {[%clk 0:02:34.4]} 17... fxg6 {[%clk 0:02:25.2]}
18. Qf3 {[%clk 0:02:18.4]} 18... Nf6 {[%clk 0:02:20.2]} 19. Rcd1 {[%clk
0:02:16.9]} 19... c5 {[%clk 0:02:15.9]} 20. Ndb5 {[%clk 0:02:12.3]} 20... Nxe4
{[%clk 0:02:15.9]} 21. Bf4 {[%clk 0:02:00.1]} 21... a6 {[%clk 0:02:06.1]} 22.
Nxe4 {[%clk 0:01:47.6]} 22... Rxe4 {[%clk 0:02:03.1]} 23. Rxe4 {[%clk
0:01:46.6]} 23... Bxe4 {[%clk 0:01:56.2]} 24. Qxe4 {[%clk 0:01:45.8]} 24... axb5
{[%clk 0:01:56.3]} 25. Rxd6 {[%clk 0:01:45.3]} 25... Qe8 {[%clk 0:01:56.2]} 26.
Re6 {[%clk 0:01:44.8]} 26... Qf7 {[%clk 0:01:52.1]} 27. Re7 {[%clk 0:01:40]}
27... Qxa2 {[%clk 0:01:51.7]} 28. Be5 {[%clk 0:01:33.6]} 28... Rg8 {[%clk
0:01:48.6]} 29. Qb7 {[%clk 0:01:28.2]} 29... Qb1+ {[%clk 0:01:14.1]} 30. Kh2
{[%clk 0:01:27.1]} 30... Qf5 {[%clk 0:01:07.2]} 31. Rxg7+ {[%clk 0:01:26.2]} 1-0

[Event "Late-Titled-Tuesday-Blitz-October-10-2023"]
[Site "Chess.com"]
[Date "2023.10.10"]
[Round "8"]
[White "filipluczak05"]
[Black "tjallkompall"]
[Result "1-0"]
[WhiteElo "2626"]
[BlackElo "2745"]
[TimeControl "180+1"]
[EndTime "15:20:47 PDT"]
[Termination "filipluczak05 won on time"]

1. d4 {[%clk 0:03:00.9]} 1... Nf6 {[%clk 0:02:58.8]} 2. Nc3 {[%clk 0:02:59.7]}
2... d5 {[%clk 0:02:57.9]} 3. Bf4 {[%clk 0:02:59.5]} 3... e6 {[%clk 0:02:56.3]}
4. e3 {[%clk 0:02:59.4]} 4... Bb4 {[%clk 0:02:55.8]} 5. Bd3 {[%clk 0:02:58.9]}
5... c5 {[%clk 0:02:55.4]} 6. dxc5 {[%clk 0:02:58.1]} 6... Qa5 {[%clk
0:02:54.1]} 7. Ne2 {[%clk 0:02:56.6]} 7... Nc6 {[%clk 0:02:47.6]} 8. O-O {[%clk
0:02:51.1]} 8... O-O {[%clk 0:02:45.3]} 9. Bd6 {[%clk 0:02:48.5]} 9... Rd8
{[%clk 0:02:43.3]} 10. a3 {[%clk 0:02:48.8]} 10... Bxc3 {[%clk 0:02:13.8]} 11.
Nxc3 {[%clk 0:02:48.5]} 11... Re8 {[%clk 0:02:14.5]} 12. b4 {[%clk 0:02:44.3]}
12... Qd8 {[%clk 0:02:14.5]} 13. Nb5 {[%clk 0:02:44.9]} 13... Re7 {[%clk
0:01:32.4]} 14. Bxe7 {[%clk 0:02:41.9]} 14... Qxe7 {[%clk 0:01:33.3]} 15. Nd6
{[%clk 0:02:42.3]} 15... Ne5 {[%clk 0:01:27.4]} 16. f4 {[%clk 0:02:38.3]} 16...
Nc6 {[%clk 0:01:21.9]} 17. c4 {[%clk 0:02:31.3]} 17... b6 {[%clk 0:01:11.6]} 18.
cxd5 {[%clk 0:02:30.2]} 18... Nxd5 {[%clk 0:01:11.1]} 19. Qf3 {[%clk 0:02:28.9]}
19... bxc5 {[%clk 0:01:08.8]} 20. bxc5 {[%clk 0:02:29.8]} 20... Bd7 {[%clk
0:01:03.4]} 21. Be4 {[%clk 0:02:23.5]} 21... Rb8 {[%clk 0:00:32.6]} 22. Rab1
{[%clk 0:02:22]} 22... Rxb1 {[%clk 0:00:25.5]} 23. Rxb1 {[%clk 0:02:22.9]} 23...
g6 {[%clk 0:00:24.9]} 24. Rb7 {[%clk 0:02:15.8]} 24... Qd8 {[%clk 0:00:15.3]}
25. Bxd5 {[%clk 0:02:12.6]} 25... exd5 {[%clk 0:00:15.2]} 26. Qxd5 {[%clk
0:02:12.9]} 26... Qe7 {[%clk 0:00:07.1]} 27. Qxf7+ {[%clk 0:02:12.3]} 27... Qxf7
{[%clk 0:00:05.3]} 28. Nxf7 {[%clk 0:02:13.2]} 1-0

[Event "Late-Titled-Tuesday-Blitz-October-10-2023"]
[Site "Chess.com"]
[Date "2023.10.10"]
[Round "8"]
[White "Atanejhad"]
[Black "arminmusovic"]
[Result "1-0"]
[WhiteElo "2401"]
[BlackElo "2487"]
[TimeControl "180+1"]
[EndTime "15:20:55 PDT"]
[Termination "Atanejhad won by resignation"]

1. d4 {[%clk 0:03:00.9]} 1... d5 {[%clk 0:02:59.7]} 2. c4 {[%clk 0:03:00.5]}
2... c5 {[%clk 0:03:00.6]} 3. dxc5 {[%clk 0:02:53]} 3... e6 {[%clk 0:03:00.5]}
4. cxd5 {[%clk 0:02:52.1]} 4... Bxc5 {[%clk 0:03:00.8]} 5. Nc3 {[%clk
0:02:48.6]} 5... Nf6 {[%clk 0:03:00.5]} 6. e4 {[%clk 0:02:44.4]} 6... exd5
{[%clk 0:02:55.3]} 7. e5 {[%clk 0:02:38.6]} 7... Ng4 {[%clk 0:02:52.1]} 8. Bb5+
{[%clk 0:02:28.4]} 8... Nc6 {[%clk 0:02:52.1]} 9. Nh3 {[%clk 0:02:26.1]} 9...
O-O {[%clk 0:02:37.2]} 10. Qxd5 {[%clk 0:02:16.6]} 10... Qb6 {[%clk 0:02:19.8]}
11. O-O {[%clk 0:02:10.2]} 11... Ngxe5 {[%clk 0:02:07.3]} 12. Nf4 {[%clk
0:02:03]} 12... Rd8 {[%clk 0:01:56.1]} 13. Qe4 {[%clk 0:02:01.1]} 13... Rd4
{[%clk 0:01:41.2]} 14. Qe1 {[%clk 0:01:48.8]} 14... Bg4 {[%clk 0:01:36]} 15. h3
{[%clk 0:01:45.5]} 15... Bf3 {[%clk 0:01:22.6]} 16. Bxc6 {[%clk 0:01:32]} 16...
Nxc6 {[%clk 0:01:09.4]} 17. gxf3 {[%clk 0:01:28.4]} 17... Rd6 {[%clk 0:00:57.8]}
18. Ne4 {[%clk 0:01:19.7]} 18... Rh6 {[%clk 0:00:54.4]} 19. Nd5 {[%clk
0:01:09.9]} 19... Rg6+ {[%clk 0:00:50.3]} 20. Kh1 {[%clk 0:01:07.3]} 20... Rd8
{[%clk 0:00:45.9]} 21. Nxb6 {[%clk 0:01:06.3]} 21... Rg1+ {[%clk 0:00:44.6]} 1-0